[Event "*** Titled Tuesday Blitz"]
[Site "Chess.com"]
[Date "2021.02.02"]
[Round "1"]
[White "KaterinaMiroshnik"]
[Black "HackWithBlack"]
[Result "1-0"]
[WhiteElo "2604"]
[BlackElo "2298"]
[TimeControl "180+1"]
[EndTime "10:05:37 PST"]
[Termination "KaterinaMiroshnik won by resignation"]

1. d3 {[%clk 0:03:00.9]} 1... c5 {[%clk 0:03:00]} 2. Nf3 {[%clk 0:03:01.8]} 2...
Nc6 {[%clk 0:03:00.4]} 3. Nbd2 {[%clk 0:03:02.4]} 3... d5 {[%clk 0:03:00.8]} 4.
e4 {[%clk 0:03:03.3]} 4... dxe4 {[%clk 0:02:57.7]} 5. dxe4 {[%clk 0:03:04.2]}
5... Nf6 {[%clk 0:02:53.8]} 6. Be2 {[%clk 0:03:05.1]} 6... Bg4 {[%clk
0:02:51.9]} 7. O-O {[%clk 0:03:04.7]} 7... e6 {[%clk 0:02:49.6]} 8. c3 {[%clk
0:03:04.3]} 8... Be7 {[%clk 0:02:47.4]} 9. Qc2 {[%clk 0:03:04.8]} 9... O-O
{[%clk 0:02:43.7]} 10. Re1 {[%clk 0:03:04.8]} 10... a6 {[%clk 0:02:32.7]} 11.
Nc4 {[%clk 0:03:03.9]} 11... b5 {[%clk 0:02:30]} 12. Ne3 {[%clk 0:03:02.7]}
12... Bh5 {[%clk 0:02:30.2]} 13. Nf1 {[%clk 0:02:52.7]} 13... Bg6 {[%clk
0:02:28.5]} 14. Ng3 {[%clk 0:02:52.5]} 14... Qc7 {[%clk 0:02:22.6]} 15. Bg5
{[%clk 0:02:48.9]} 15... h6 {[%clk 0:02:16.4]} 16. Be3 {[%clk 0:02:44.5]} 16...
Rfd8 {[%clk 0:02:11.2]} 17. Rad1 {[%clk 0:02:43.4]} 17... Ng4 {[%clk 0:02:05.6]}
18. Bc1 {[%clk 0:02:38.8]} 18... c4 {[%clk 0:01:57.7]} 19. Nd4 {[%clk
0:02:28.8]} 19... Nge5 {[%clk 0:01:48]} 20. f4 {[%clk 0:02:21.3]} 20... Nxd4
{[%clk 0:01:42]} 21. cxd4 {[%clk 0:02:18.4]} 21... Nc6 {[%clk 0:01:42.2]} 22.
Be3 {[%clk 0:02:16.3]} 22... Bb4 {[%clk 0:01:33.6]} 23. Rf1 {[%clk 0:02:14.4]}
23... Bh7 {[%clk 0:01:33.1]} 24. Bf3 {[%clk 0:02:11.4]} 24... Qa7 {[%clk
0:01:18]} 25. Qf2 {[%clk 0:02:10.4]} 25... Qc7 {[%clk 0:01:05.4]} 26. d5 {[%clk
0:02:05.4]} 26... Ne7 {[%clk 0:00:52.2]} 27. Bb6 {[%clk 0:02:00.1]} 27... Qb7
{[%clk 0:00:45.1]} 28. Bxd8 {[%clk 0:01:57.9]} 28... Rxd8 {[%clk 0:00:46]} 29.
d6 {[%clk 0:01:51.9]} 29... Nc6 {[%clk 0:00:39.9]} 30. e5 {[%clk 0:01:47.9]}
30... Qd7 {[%clk 0:00:39.3]} 31. Be4 {[%clk 0:01:43.4]} 31... f6 {[%clk
0:00:36.8]} 32. Bxh7+ {[%clk 0:01:42]} 32... Kxh7 {[%clk 0:00:37.7]} 33. Qc2+
{[%clk 0:01:33.7]} 33... Kh8 {[%clk 0:00:37.6]} 34. Qe4 {[%clk 0:01:32.6]} 34...
Qa7+ {[%clk 0:00:30.1]} 35. Kh1 {[%clk 0:01:31.2]} 35... Qc5 {[%clk 0:00:30.3]}
36. exf6 {[%clk 0:01:28.3]} 36... gxf6 {[%clk 0:00:31.2]} 37. Qxe6 {[%clk
0:01:27.6]} 1-0

[Event "*** Titled Tuesday Blitz"]
[Site "Chess.com"]
[Date "2021.02.02"]
[Round "1"]
[White "IMAghasiyevKamal"]
[Black "Godzillator"]
[Result "1-0"]
[WhiteElo "2614"]
[BlackElo "2314"]
[TimeControl "180+1"]
[EndTime "10:05:40 PST"]
[Termination "IMAghasiyevKamal won on time"]

1. d4 {[%clk 0:03:00.9]} 1... d5 {[%clk 0:02:59.3]} 2. c4 {[%clk 0:03:00]} 2...
c6 {[%clk 0:02:59.5]} 3. Nc3 {[%clk 0:02:59]} 3... Nf6 {[%clk 0:02:58.9]} 4. e3
{[%clk 0:02:57.7]} 4... a6 {[%clk 0:02:58.7]} 5. Nf3 {[%clk 0:02:50.3]} 5... Bf5
{[%clk 0:02:58.6]} 6. Be2 {[%clk 0:02:43.5]} 6... h6 {[%clk 0:02:58.1]} 7. O-O
{[%clk 0:02:42.9]} 7... e6 {[%clk 0:02:57.5]} 8. b3 {[%clk 0:02:43]} 8... Be7
{[%clk 0:02:56.6]} 9. Bb2 {[%clk 0:02:42.6]} 9... O-O {[%clk 0:02:56.1]} 10. Bd3
{[%clk 0:02:37.3]} 10... Bxd3 {[%clk 0:02:55.4]} 11. Qxd3 {[%clk 0:02:37.1]}
11... b5 {[%clk 0:02:55.5]} 12. c5 {[%clk 0:02:33.8]} 12... a5 {[%clk
0:02:54.5]} 13. Ne5 {[%clk 0:02:30.7]} 13... Nfd7 {[%clk 0:02:51.9]} 14. f4
{[%clk 0:02:29.6]} 14... Qc7 {[%clk 0:02:40.7]} 15. a4 {[%clk 0:02:12.4]} 15...
b4 {[%clk 0:02:40]} 16. Ne2 {[%clk 0:02:09.5]} 16... Nxe5 {[%clk 0:02:29.4]} 17.
fxe5 {[%clk 0:02:07.8]} 17... Nd7 {[%clk 0:02:28.7]} 18. Nf4 {[%clk 0:02:01.6]}
18... Bg5 {[%clk 0:02:27]} 19. Rf3 {[%clk 0:01:52.7]} 19... Bxf4 {[%clk
0:02:25.1]} 20. exf4 {[%clk 0:01:42]} 20... f5 {[%clk 0:02:21.6]} 21. Kh1 {[%clk
0:01:39.7]} 21... Kf7 {[%clk 0:02:20.2]} 22. g4 {[%clk 0:01:34.9]} 22... g6
{[%clk 0:02:18.2]} 23. Rg1 {[%clk 0:01:33.9]} 23... Rg8 {[%clk 0:02:17.9]} 24.
Rfg3 {[%clk 0:01:32.1]} 24... Raf8 {[%clk 0:02:17]} 25. Qe2 {[%clk 0:01:28.7]}
1-0

[Event "*** Titled Tuesday Blitz"]
[Site "Chess.com"]
[Date "2021.02.02"]
[Round "1"]
[White "DonPreuss"]
[Black "Aradej"]
[Result "0-1"]
[WhiteElo "2215"]
[BlackElo "2540"]
[TimeControl "180+1"]
[EndTime "10:05:40 PST"]
[Termination "Aradej won on time"]

1. d4 {[%clk 0:02:56.5]} 1... Nf6 {[%clk 0:02:58.3]} 2. Nc3 {[%clk 0:02:56.2]}
2... d5 {[%clk 0:02:57.7]} 3. e4 {[%clk 0:02:56.8]} 3... dxe4 {[%clk 0:02:57.2]}
4. f3 {[%clk 0:02:56.5]} 4... e3 {[%clk 0:02:56.3]} 5. Bxe3 {[%clk 0:02:56.1]}
5... Bf5 {[%clk 0:02:56]} 6. Nge2 {[%clk 0:02:55.5]} 6... e6 {[%clk 0:02:55.7]}
7. Ng3 {[%clk 0:02:56]} 7... Bg6 {[%clk 0:02:55.5]} 8. Bd3 {[%clk 0:02:56.6]}
8... c6 {[%clk 0:02:54.3]} 9. O-O {[%clk 0:02:57]} 9... Be7 {[%clk 0:02:53.2]}
10. f4 {[%clk 0:02:56.6]} 10... Bxd3 {[%clk 0:02:52.3]} 11. Qxd3 {[%clk
0:02:56.4]} 11... g6 {[%clk 0:02:52.4]} 12. Nce4 {[%clk 0:02:50.5]} 12... Nxe4
{[%clk 0:02:50.5]} 13. Nxe4 {[%clk 0:02:46.6]} 13... Nd7 {[%clk 0:02:49.2]} 14.
c3 {[%clk 0:02:42.2]} 14... O-O {[%clk 0:02:48.3]} 15. Ng3 {[%clk 0:02:19.1]}
15... Bf6 {[%clk 0:02:35.7]} 16. f5 {[%clk 0:02:11.5]} 16... exf5 {[%clk
0:02:35.2]} 17. Bh6 {[%clk 0:02:11.3]} 17... Re8 {[%clk 0:02:33.2]} 18. Nxf5
{[%clk 0:01:35]} 18... gxf5 {[%clk 0:02:32.8]} 19. Qxf5 {[%clk 0:01:35.9]} 19...
Re6 {[%clk 0:02:32.9]} 20. Rf3 {[%clk 0:01:25.3]} 20... Kh8 {[%clk 0:02:32.2]}
21. Raf1 {[%clk 0:01:21.9]} 21... Qe7 {[%clk 0:02:29.9]} 22. Qh5 {[%clk
0:01:19.2]} 22... Rg8 {[%clk 0:02:26.1]} 23. Rh3 {[%clk 0:01:15.6]} 23... Re1
{[%clk 0:02:14.1]} 24. Bd2 {[%clk 0:00:17.6]} 24... Rxf1+ {[%clk 0:02:11.5]} 25.
Kxf1 {[%clk 0:00:18.5]} 25... Nf8 {[%clk 0:02:06.6]} 26. Bh6 {[%clk 0:00:16.9]}
26... Nd7 {[%clk 0:01:57.1]} 27. Bf4 {[%clk 0:00:11.9]} 27... Rg7 {[%clk
0:01:55.9]} 28. Bh6 {[%clk 0:00:12]} 28... Rg6 {[%clk 0:01:55.4]} 29. Bf4 {[%clk
0:00:11.8]} 29... Rg7 {[%clk 0:01:50.3]} 30. Bh6 {[%clk 0:00:12]} 30... Rg8
{[%clk 0:01:50.5]} 31. Bf4 {[%clk 0:00:12.2]} 31... Qe4 {[%clk 0:01:49.7]} 32.
Be3 {[%clk 0:00:05.1]} 32... Qxg2+ {[%clk 0:01:47]} 33. Ke1 {[%clk 0:00:04.8]}
33... Qg6 {[%clk 0:01:43.9]} 0-1

[Event "*** Titled Tuesday Blitz"]
[Site "Chess.com"]
[Date "2021.02.02"]
[Round "1"]
[White "MrChampion_Coach"]
[Black "A-Fier"]
[Result "0-1"]
[WhiteElo "2438"]
[BlackElo "2851"]
[TimeControl "180+1"]
[EndTime "10:05:43 PST"]
[Termination "A-Fier won by resignation"]

1. d4 {[%clk 0:02:58.9]} 1... Nf6 {[%clk 0:02:59.9]} 2. c4 {[%clk 0:02:58.3]}
2... c5 {[%clk 0:03:00.5]} 3. d5 {[%clk 0:02:58]} 3... e6 {[%clk 0:03:01]} 4.
Nc3 {[%clk 0:02:57.4]} 4... exd5 {[%clk 0:03:01.6]} 5. cxd5 {[%clk 0:02:58.3]}
5... d6 {[%clk 0:03:01.7]} 6. Nf3 {[%clk 0:02:58.3]} 6... g6 {[%clk 0:03:02.1]}
7. Bf4 {[%clk 0:02:56.6]} 7... Bg7 {[%clk 0:03:01.4]} 8. e3 {[%clk 0:02:56.9]}
8... O-O {[%clk 0:03:00.6]} 9. Be2 {[%clk 0:02:56.3]} 9... Na6 {[%clk
0:02:59.4]} 10. O-O {[%clk 0:02:54.5]} 10... Nc7 {[%clk 0:02:58.9]} 11. h3
{[%clk 0:02:39]} 11... Re8 {[%clk 0:02:58.1]} 12. a3 {[%clk 0:02:26.5]} 12...
Ne4 {[%clk 0:02:56]} 13. Nxe4 {[%clk 0:02:21.2]} 13... Rxe4 {[%clk 0:02:55.6]}
14. Nd2 {[%clk 0:02:18.5]} 14... Rxf4 {[%clk 0:02:54.4]} 15. exf4 {[%clk
0:02:18.3]} 15... Nxd5 {[%clk 0:02:54.6]} 16. Bc4 {[%clk 0:01:55.4]} 16... Nxf4
{[%clk 0:02:50.4]} 17. Qf3 {[%clk 0:01:54.9]} 17... Ne6 {[%clk 0:02:31.5]} 18.
Rab1 {[%clk 0:01:49.6]} 18... Rb8 {[%clk 0:02:10.2]} 19. Rfd1 {[%clk 0:01:46.3]}
19... b5 {[%clk 0:02:10.2]} 20. Bd5 {[%clk 0:01:46.4]} 20... Qc7 {[%clk
0:02:07.4]} 21. Ne4 {[%clk 0:01:40.4]} 21... Nd4 {[%clk 0:02:03.2]} 22. Nf6+
{[%clk 0:01:11.3]} 22... Kh8 {[%clk 0:01:58.8]} 23. Rxd4 {[%clk 0:01:09.3]}
23... cxd4 {[%clk 0:01:54.9]} 24. Ne8 {[%clk 0:01:03.8]} 24... Qe7 {[%clk
0:01:52.8]} 25. Nxg7 {[%clk 0:00:57.2]} 25... Kxg7 {[%clk 0:01:53.7]} 26. Rd1
{[%clk 0:00:45.7]} 26... Qf6 {[%clk 0:01:50.6]} 27. Qb3 {[%clk 0:00:32.3]} 27...
Bf5 {[%clk 0:01:43.1]} 28. a4 {[%clk 0:00:26.1]} 28... a6 {[%clk 0:01:42.2]} 29.
axb5 {[%clk 0:00:25.6]} 29... Rxb5 {[%clk 0:01:42.1]} 30. Qa2 {[%clk 0:00:20.8]}
30... Bc2 {[%clk 0:01:40.4]} 31. Rd2 {[%clk 0:00:19.6]} 31... d3 {[%clk
0:01:40.9]} 32. Bc4 {[%clk 0:00:19.6]} 32... Rxb2 {[%clk 0:01:40.7]} 33. Qxa6
{[%clk 0:00:10.6]} 33... Rb1+ {[%clk 0:01:41.1]} 34. Kh2 {[%clk 0:00:10.8]}
34... Qf4+ {[%clk 0:01:41.7]} 35. g3 {[%clk 0:00:11.1]} 35... Qxd2 {[%clk
0:01:42.6]} 0-1

[Event "*** Titled Tuesday Blitz"]
[Site "Chess.com"]
[Date "2021.02.02"]
[Round "1"]
[White "druskacik"]
[Black "Agoking701"]
[Result "1-0"]
[WhiteElo "2604"]
[BlackElo "2299"]
[TimeControl "180+1"]
[EndTime "10:05:43 PST"]
[Termination "druskacik won by resignation"]

1. d4 {[%clk 0:02:58.1]} 1... Nf6 {[%clk 0:02:58.1]} 2. Bg5 {[%clk 0:02:57.7]}
2... e6 {[%clk 0:02:56.5]} 3. Nd2 {[%clk 0:02:57.2]} 3... c5 {[%clk 0:02:51.9]}
4. Ne4 {[%clk 0:02:55.2]} 4... Be7 {[%clk 0:02:37.2]} 5. Bxf6 {[%clk 0:02:36.3]}
5... gxf6 {[%clk 0:02:33.8]} 6. dxc5 {[%clk 0:02:34.9]} 6... Bxc5 {[%clk
0:02:27.1]} 7. Nxc5 {[%clk 0:02:28.1]} 7... Qa5+ {[%clk 0:02:25.9]} 8. c3 {[%clk
0:02:29]} 8... Qxc5 {[%clk 0:02:25.5]} 9. Qd4 {[%clk 0:02:28.3]} 9... Qxd4
{[%clk 0:02:18.8]} 10. cxd4 {[%clk 0:02:29.2]} 10... b6 {[%clk 0:02:17.4]} 11.
e3 {[%clk 0:02:24.4]} 11... Rg8 {[%clk 0:02:13.2]} 12. f3 {[%clk 0:02:06.8]}
12... Ba6 {[%clk 0:02:05.5]} 13. Rc1 {[%clk 0:02:00.7]} 13... Bxf1 {[%clk
0:02:00.6]} 14. Rc8+ {[%clk 0:01:58.7]} 14... Ke7 {[%clk 0:01:14.6]} 15. Rxg8
{[%clk 0:01:59.6]} 15... Bb5 {[%clk 0:01:05]} 16. Ne2 {[%clk 0:01:57.1]} 16...
d6 {[%clk 0:01:04]} 17. Kd2 {[%clk 0:01:55.5]} 17... Be8 {[%clk 0:01:03.6]} 18.
Rc1 {[%clk 0:01:52.6]} 18... Nd7 {[%clk 0:00:58.2]} 19. Rc7 {[%clk 0:01:47.4]}
19... a5 {[%clk 0:00:54.1]} 20. Nc3 {[%clk 0:01:41.1]} 20... a4 {[%clk
0:00:52.3]} 21. Rh8 {[%clk 0:01:36]} 21... Kd8 {[%clk 0:00:48.2]} 22. Rc6 {[%clk
0:01:11.2]} 22... Ke7 {[%clk 0:00:43]} 23. Ne4 {[%clk 0:01:02.7]} 23... Ne5
{[%clk 0:00:41]} 24. Rc7+ {[%clk 0:00:59.3]} 24... Kd8 {[%clk 0:00:38.1]} 25.
Rxe8+ {[%clk 0:00:52.6]} 25... Kxe8 {[%clk 0:00:35]} 26. dxe5 {[%clk 0:00:52.5]}
1-0

[Event "*** Titled Tuesday Blitz"]
[Site "Chess.com"]
[Date "2021.02.02"]
[Round "1"]
[White "pavet"]
[Black "temiksmozg"]
[Result "0-1"]
[WhiteElo "2305"]
[BlackElo "2614"]
[TimeControl "180+1"]
[EndTime "10:05:45 PST"]
[Termination "temiksmozg won by resignation"]

1. e4 {[%clk 0:03:00.6]} 1... c5 {[%clk 0:02:59.6]} 2. Nf3 {[%clk 0:03:00.1]}
2... e6 {[%clk 0:03:00.1]} 3. d4 {[%clk 0:03:00.2]} 3... cxd4 {[%clk 0:03:01]}
4. Nxd4 {[%clk 0:03:01]} 4... Nf6 {[%clk 0:03:00.9]} 5. Bd3 {[%clk 0:02:59.8]}
5... Nc6 {[%clk 0:02:58.6]} 6. Nxc6 {[%clk 0:02:57.2]} 6... dxc6 {[%clk
0:02:58.3]} 7. Nd2 {[%clk 0:02:58.1]} 7... e5 {[%clk 0:02:57.4]} 8. O-O {[%clk
0:02:58]} 8... Be6 {[%clk 0:02:56]} 9. Qe2 {[%clk 0:02:57.6]} 9... Bc5 {[%clk
0:02:52.5]} 10. a4 {[%clk 0:02:56.9]} 10... a5 {[%clk 0:02:37.2]} 11. Nc4 {[%clk
0:02:47.2]} 11... Nd7 {[%clk 0:02:35.4]} 12. Be3 {[%clk 0:02:43.2]} 12... Qe7
{[%clk 0:02:34]} 13. f4 {[%clk 0:02:31.8]} 13... Bxc4 {[%clk 0:02:24.4]} 14.
Bxc4 {[%clk 0:02:30.2]} 14... exf4 {[%clk 0:02:24.8]} 15. Rxf4 {[%clk
0:02:26.6]} 15... Ne5 {[%clk 0:02:25]} 16. Bb3 {[%clk 0:02:19.4]} 16... O-O-O
{[%clk 0:02:19.1]} 17. Raf1 {[%clk 0:02:15.7]} 17... f6 {[%clk 0:02:17.8]} 18.
Kh1 {[%clk 0:02:14.7]} 18... Bxe3 {[%clk 0:02:16.8]} 19. Qxe3 {[%clk 0:02:14.6]}
19... Qb4 {[%clk 0:02:15.2]} 20. h3 {[%clk 0:01:56]} 20... Kc7 {[%clk
0:02:11.4]} 21. Qg3 {[%clk 0:01:54.8]} 21... Rd7 {[%clk 0:02:08.6]} 22. Rf5
{[%clk 0:01:29.7]} 22... Re7 {[%clk 0:02:04.1]} 23. Qe3 {[%clk 0:01:14.5]} 23...
Rd8 {[%clk 0:02:00.3]} 24. R5f2 {[%clk 0:01:13.9]} 24... Qd4 {[%clk 0:01:57.1]}
25. Qe1 {[%clk 0:01:13.6]} 25... Qc5 {[%clk 0:01:52.3]} 26. Rf5 {[%clk
0:01:09.5]} 26... Rd4 {[%clk 0:01:43.8]} 27. Bg8 {[%clk 0:01:02]} 27... h6
{[%clk 0:01:42.9]} 28. c3 {[%clk 0:01:01.8]} 28... Rd3 {[%clk 0:01:39.6]} 29.
Bb3 {[%clk 0:00:53.6]} 29... Red7 {[%clk 0:01:37.8]} 30. R5f2 {[%clk 0:00:52]}
30... Qe3 {[%clk 0:01:34.3]} 31. Re2 {[%clk 0:00:49.2]} 31... Qg3 {[%clk
0:01:33.9]} 32. Qc1 {[%clk 0:00:36.1]} 32... Qg5 {[%clk 0:01:33.6]} 33. Qe1
{[%clk 0:00:34.7]} 33... Rd2 {[%clk 0:01:32]} 34. Be6 {[%clk 0:00:33.1]} 34...
Rxe2 {[%clk 0:01:31.1]} 0-1

[Event "*** Titled Tuesday Blitz"]
[Site "Chess.com"]
[Date "2021.02.02"]
[Round "1"]
[White "lelajavakhishvili"]
[Black "mirochka"]
[Result "1-0"]
[WhiteElo "2533"]
[BlackElo "2202"]
[TimeControl "180+1"]
[EndTime "10:05:50 PST"]
[Termination "lelajavakhishvili won by checkmate"]

1. d4 {[%clk 0:03:00.4]} 1... Nf6 {[%clk 0:02:59]} 2. c4 {[%clk 0:03:00]} 2...
e6 {[%clk 0:02:58.8]} 3. Nf3 {[%clk 0:02:59.8]} 3... d5 {[%clk 0:02:58.2]} 4.
Nc3 {[%clk 0:02:59.2]} 4... Be7 {[%clk 0:02:56.7]} 5. g3 {[%clk 0:02:56.6]} 5...
dxc4 {[%clk 0:02:50.9]} 6. Bg2 {[%clk 0:02:55.9]} 6... Nc6 {[%clk 0:02:49.1]} 7.
Qa4 {[%clk 0:02:49.5]} 7... O-O {[%clk 0:02:08.6]} 8. Qxc4 {[%clk 0:02:48.2]}
8... Na5 {[%clk 0:01:42.1]} 9. Qa4 {[%clk 0:02:45.2]} 9... c5 {[%clk 0:01:28.4]}
10. dxc5 {[%clk 0:02:45.1]} 10... Bxc5 {[%clk 0:01:08.9]} 11. O-O {[%clk
0:02:21.4]} 11... Bd7 {[%clk 0:01:07.1]} 12. Qc2 {[%clk 0:02:19.5]} 12... Bc6
{[%clk 0:00:50.1]} 13. Bf4 {[%clk 0:02:10.7]} 13... Rc8 {[%clk 0:00:44.8]} 14.
Rad1 {[%clk 0:02:07.6]} 14... Qb6 {[%clk 0:00:37.1]} 15. Ne5 {[%clk 0:01:44.5]}
15... Bxg2 {[%clk 0:00:35.2]} 16. Kxg2 {[%clk 0:01:45.4]} 16... Rfd8 {[%clk
0:00:26.4]} 17. Bg5 {[%clk 0:01:38]} 17... Rxd1 {[%clk 0:00:25]} 18. Rxd1 {[%clk
0:01:33.1]} 18... Bxf2 {[%clk 0:00:20.1]} 19. Bxf6 {[%clk 0:01:30.1]} 19... gxf6
{[%clk 0:00:21]} 20. Nd7 {[%clk 0:01:30.2]} 20... Qc6+ {[%clk 0:00:21]} 21. Kxf2
{[%clk 0:01:30.1]} 21... Kg7 {[%clk 0:00:19.7]} 22. Qe4 {[%clk 0:01:26.7]} 22...
Qxe4 {[%clk 0:00:18.3]} 23. Nxe4 {[%clk 0:01:26.6]} 23... Rc2 {[%clk 0:00:18.3]}
24. Rd2 {[%clk 0:01:23.5]} 24... Rc7 {[%clk 0:00:16.9]} 25. Nexf6 {[%clk
0:01:21.1]} 25... Nc4 {[%clk 0:00:16.1]} 26. Rd4 {[%clk 0:01:20.7]} 26... b5
{[%clk 0:00:16]} 27. Rg4+ {[%clk 0:01:20.3]} 27... Kh6 {[%clk 0:00:15.5]} 28. h4
{[%clk 0:01:17.8]} 28... Nd6 {[%clk 0:00:11.6]} 29. Ng8+ {[%clk 0:01:16.4]}
29... Kh5 {[%clk 0:00:10.9]} 30. Rg5# {[%clk 0:01:17]} 1-0

[Event "*** Titled Tuesday Blitz"]
[Site "Chess.com"]
[Date "2021.02.02"]
[Round "1"]
[White "MarcoRiehle"]
[Black "ljuks68"]
[Result "0-1"]
[WhiteElo "2686"]
[BlackElo "2392"]
[TimeControl "180+1"]
[EndTime "10:05:52 PST"]
[Termination "ljuks68 won by resignation"]

1. e4 {[%clk 0:03:00.9]} 1... e6 {[%clk 0:02:55.8]} 2. c4 {[%clk 0:02:52.6]}
2... d5 {[%clk 0:02:56]} 3. cxd5 {[%clk 0:02:53.5]} 3... exd5 {[%clk 0:02:56.3]}
4. Qb3 {[%clk 0:02:45.9]} 4... Nf6 {[%clk 0:02:35.2]} 5. e5 {[%clk 0:02:26.3]}
5... Ne4 {[%clk 0:02:34.7]} 6. Nc3 {[%clk 0:02:17.2]} 6... Nxc3 {[%clk
0:02:31.2]} 7. bxc3 {[%clk 0:02:18.1]} 7... Be7 {[%clk 0:02:28.4]} 8. d4 {[%clk
0:02:12.7]} 8... O-O {[%clk 0:02:27.7]} 9. f4 {[%clk 0:02:02]} 9... c5 {[%clk
0:02:26.2]} 10. Nf3 {[%clk 0:01:53.9]} 10... Nc6 {[%clk 0:02:24.8]} 11. Ba3
{[%clk 0:01:46.9]} 11... c4 {[%clk 0:02:18.2]} 12. Qb2 {[%clk 0:01:41.9]} 12...
Bf5 {[%clk 0:02:12.9]} 13. Bxe7 {[%clk 0:01:17.9]} 13... Qxe7 {[%clk 0:02:11.7]}
14. Be2 {[%clk 0:01:18.1]} 14... b5 {[%clk 0:02:11.2]} 15. O-O {[%clk
0:01:17.6]} 15... b4 {[%clk 0:02:11.4]} 16. Nd2 {[%clk 0:01:09.5]} 16... bxc3
{[%clk 0:02:09]} 17. Qxc3 {[%clk 0:01:10.4]} 17... Qb4 {[%clk 0:02:05.5]} 18.
Qxb4 {[%clk 0:01:05.3]} 18... Nxb4 {[%clk 0:02:05.5]} 19. Bf3 {[%clk 0:01:05.2]}
19... Rfd8 {[%clk 0:02:01.7]} 20. g4 {[%clk 0:00:42.6]} 20... Bd3 {[%clk
0:01:59.1]} 21. Rf2 {[%clk 0:00:27.7]} 21... Nc2 {[%clk 0:01:56.8]} 22. Rd1
{[%clk 0:00:25.7]} 22... Nxd4 {[%clk 0:01:53.4]} 23. f5 {[%clk 0:00:25.9]} 23...
Rab8 {[%clk 0:01:48.5]} 24. Nf1 {[%clk 0:00:18.1]} 24... Nxf3+ {[%clk
0:01:45.9]} 25. Rxf3 {[%clk 0:00:19]} 25... Be2 {[%clk 0:01:46.2]} 26. Re3
{[%clk 0:00:14.3]} 26... Bxd1 {[%clk 0:01:45.9]} 27. e6 {[%clk 0:00:15.2]} 27...
fxe6 {[%clk 0:01:45.3]} 28. fxe6 {[%clk 0:00:16.1]} 28... Bxg4 {[%clk
0:01:40.9]} 29. h3 {[%clk 0:00:13.6]} 29... Bxe6 {[%clk 0:01:33.6]} 30. Rxe6
{[%clk 0:00:12.9]} 30... d4 {[%clk 0:01:34.1]} 31. Rc6 {[%clk 0:00:10.2]} 31...
c3 {[%clk 0:01:32.1]} 32. Kf2 {[%clk 0:00:09.8]} 32... Rb2+ {[%clk 0:01:26.6]}
33. Kf3 {[%clk 0:00:09.4]} 33... Rf8+ {[%clk 0:01:26.4]} 34. Kg3 {[%clk
0:00:09.1]} 0-1

[Event "*** Titled Tuesday Blitz"]
[Site "Chess.com"]
[Date "2021.02.02"]
[Round "1"]
[White "FlySooHigh"]
[Black "KubaGepard"]
[Result "1-0"]
[WhiteElo "2606"]
[BlackElo "2308"]
[TimeControl "180+1"]
[EndTime "10:05:54 PST"]
[Termination "FlySooHigh won by resignation"]

1. e4 {[%clk 0:03:00.9]} 1... c5 {[%clk 0:02:55.4]} 2. Nf3 {[%clk 0:03:00.1]}
2... d6 {[%clk 0:02:55.6]} 3. Nc3 {[%clk 0:02:59.6]} 3... Nf6 {[%clk 0:02:54.7]}
4. e5 {[%clk 0:02:59.7]} 4... dxe5 {[%clk 0:02:51.1]} 5. Nxe5 {[%clk 0:03:00.6]}
5... Nbd7 {[%clk 0:02:50.6]} 6. d4 {[%clk 0:03:00]} 6... Nxe5 {[%clk 0:02:47.5]}
7. dxe5 {[%clk 0:03:00.9]} 7... Qxd1+ {[%clk 0:02:47.6]} 8. Kxd1 {[%clk
0:03:01.8]} 8... Ng4 {[%clk 0:02:47]} 9. Bb5+ {[%clk 0:03:02.2]} 9... Bd7 {[%clk
0:02:45.8]} 10. e6 {[%clk 0:03:02.6]} 10... fxe6 {[%clk 0:02:42.5]} 11. Bxd7+
{[%clk 0:03:01.6]} 11... Kxd7 {[%clk 0:02:41.5]} 12. Ne4 {[%clk 0:03:02.5]}
12... Kc6 {[%clk 0:02:39.3]} 13. f3 {[%clk 0:03:02.9]} 13... Nf6 {[%clk
0:02:39.2]} 14. Ng5 {[%clk 0:03:02.3]} 14... g6 {[%clk 0:02:30.4]} 15. Nxe6
{[%clk 0:02:59.9]} 15... Rg8 {[%clk 0:02:18.5]} 16. Re1 {[%clk 0:02:53.9]} 16...
Bg7 {[%clk 0:02:13.9]} 17. c4 {[%clk 0:02:45.3]} 17... Bh8 {[%clk 0:02:08.2]}
18. Bh6 {[%clk 0:02:32.7]} 18... Ne8 {[%clk 0:01:58.7]} 19. Kc2 {[%clk
0:02:11.7]} 19... Nd6 {[%clk 0:01:53.4]} 20. Kb3 {[%clk 0:02:05.7]} 20... a6
{[%clk 0:01:48.9]} 21. Rac1 {[%clk 0:02:03.1]} 21... Rac8 {[%clk 0:01:43.9]} 22.
a4 {[%clk 0:01:56.3]} 22... b5 {[%clk 0:01:37.1]} 23. cxb5+ {[%clk 0:01:53.7]}
23... axb5 {[%clk 0:01:37.6]} 24. Rxc5+ {[%clk 0:01:53.3]} 24... Kb7 {[%clk
0:01:30.2]} 25. axb5 {[%clk 0:01:49.5]} 25... Rxc5 {[%clk 0:01:29.8]} 26. Nxc5+
{[%clk 0:01:50.2]} 26... Kb6 {[%clk 0:01:30.2]} 27. Nd7+ {[%clk 0:01:39.7]}
27... Kxb5 {[%clk 0:01:28.3]} 28. Rxe7 {[%clk 0:01:39.4]} 28... Nf5 {[%clk
0:01:26.4]} 29. Rxh7 {[%clk 0:01:36.6]} 29... Re8 {[%clk 0:01:16.3]} 30. Bd2
{[%clk 0:01:20.9]} 30... Nd4+ {[%clk 0:01:07.9]} 31. Ka2 {[%clk 0:01:14.8]}
31... Ra8+ {[%clk 0:01:05.4]} 32. Kb1 {[%clk 0:01:13.4]} 32... Nb3 {[%clk
0:01:02.2]} 33. Bc3 {[%clk 0:01:10.2]} 33... Bxc3 {[%clk 0:00:54.4]} 34. bxc3
{[%clk 0:01:10.1]} 34... Re8 {[%clk 0:00:49.2]} 35. Kc2 {[%clk 0:01:08.2]} 35...
Nc5 {[%clk 0:00:49]} 36. Nxc5 {[%clk 0:01:07.6]} 36... Kxc5 {[%clk 0:00:48.8]}
37. Kd3 {[%clk 0:01:07.6]} 37... Rd8+ {[%clk 0:00:48.3]} 38. Ke3 {[%clk
0:01:07.2]} 38... Kc4 {[%clk 0:00:47.9]} 39. Rc7+ {[%clk 0:01:06]} 39... Kb3
{[%clk 0:00:46.6]} 40. Kf4 {[%clk 0:01:05.2]} 1-0